fUSD/lending_fUSD_20260327
["ID","MTS","AMOUNT","RATE_DAILY","PERIOD"]
[418936622,1774594247559,-500.0,0.00026009,120]
[418936623,1774594247569,-173.99,0.00026169,2]
[418936624,1774594247578,-159.86264021,0.00026197,2]
[418936625,1774594247588,-166.23,0.000262,120]
[418936626,1774594247597,-2000.0,0.000266,2]
[418936627,1774594247607,-502.0,0.0002674,2]
[418936628,1774594247616,-2870.0,0.00026806,3]
[418936629,1774594247625,-161.0,0.00026831,3]
[418936630,1774594247635,-153.24222256,0.000269,30]
[418936631,1774594247646,-150.0,0.00027185,2]
[418936632,1774594247655,-157.78,0.00027266,2]
[418936633,1774594247665,-195.62226088,0.0002729,30]
[418936634,1774594247674,-825.0,0.00027295,60]
[418936635,1774594247684,-500.0,0.00027387,2]
[418936636,1774594247695,-1000.0,0.00027397,120]
[418936637,1774594247705,-300.0,0.00027397,2]
[418936638,1774594247716,-19855.53,0.00027397,10]
[418936639,1774594247727,-28750.03,0.00027397,10]
[418936640,1774594247736,-23958.35,0.00027397,10]
[418936641,1774594247747,-19965.3,0.00027397,10]
[418936642,1774594247757,-15890.80286731,0.00027594,2]
[418936643,1774594247767,-2467.0,0.00027663,2]
[418936644,1774594247777,-500.0,0.00027666,2]
[418936645,1774594247786,-532.09816881,0.00027666,17]
[418936646,1774594247795,-1104.53077539,0.00027667,2]
[418936647,1774594247805,-1508.28,0.000277,7]
[418936648,1774594247815,-5000.0,0.00027806,2]
[418936649,1774594247827,-15842.76908767,0.00027842,2]
[418936650,1774594247838,-312.0,0.00027909,3]
[418936651,1774594247847,-5736.26257907,0.00027975,2]
[418936652,1774594247857,-151.0,0.00028,2]
[418936653,1774594247867,-500.0,0.00028215,17]
[418936654,1774594247876,-500.0,0.00028215,2]
[418936655,1774594247885,-194.52352446,0.000285,5]
[418936656,1774594247895,-150.0,0.00028544,2]
[418936657,1774594247904,-2803.36464642,0.00029011,2]
[418936658,1774594247913,-1508.28,0.000292,7]
[418936659,1774594247923,-157.78,0.00029429,2]
[418936660,1774594247932,-1568.0,0.00029442,3]
[418936661,1774594247941,-337.26,0.00029588,7]
[418936662,1774594247950,-195.62226088,0.0002965,30]
[418936663,1774594247959,-825.0,0.00029727,60]
[418936664,1774594247969,-153.0,0.000298,20]
[418936665,1774594247978,-5200.0,0.000299,10]
[418936666,1774594247987,-150.0,0.00029971,2]
[418936667,1774594247997,-185.0,0.00029979,2]
[418936668,1774594248006,-300.74920674,0.00029999,2]
[418936669,1774594248015,-302.47423744,0.00029999,2]
[418936670,1774594248024,-500.0,0.00029999,2]
[418936671,1774594248034,-500.0,0.00029999,2]
[418936672,1774594248043,-500.0,0.00029999,2]
[418936673,1774594248052,-535.49004994,0.00029999,2]
[418936674,1774594248062,-500.0,0.00029999,2]
[418936675,1774594248072,-500.0,0.00029999,2]
[418936676,1774594248081,-364.30909044,0.00029999,2]
[418936677,1774594248092,-500.0,0.00029999,2]
[418936678,1774594248101,-500.0,0.00029999,2]
[418936679,1774594248111,-151.0,0.0003,5]
[418936680,1774594248122,-151.0,0.0003,5]
[418936681,1774594248131,-872.61,0.0003,10]
[418936682,1774594248141,-5464.7536465,0.0003,2]
[418936683,1774594248152,-150.0,0.0003,120]
[418936684,1774594248161,-150.0,0.0003,7]
[418936685,1774594248171,-201.2,0.0003,10]
[418936686,1774594248181,-508.7,0.0003,120]
[418936687,1774594248190,-150.0,0.0003,7]
[418936688,1774594248200,-1000.0,0.00030137,120]
[418936689,1774594248209,-2000.0,0.00030203,2]
[418936690,1774594248218,-1999.41970502,0.00030203,2]
[418936693,1774594757613,160.21718232,1e-06,2]
[418936747,1774595439949,-28711.8096971,0.0001399,2]
[418936748,1774595439959,-211.73196621,0.0001448,2]
[418936749,1774595439968,-210.52444472,0.0001448,2]
[418936750,1774595439977,-500.0,0.0001448,2]
[418936751,1774595439987,-500.0,0.0001448,2]
[418936752,1774595439996,-370.32500795,0.0001448,2]
[418936753,1774595440005,-484.27453626,0.0001448,2]
[418936754,1774595440014,-500.0,0.0001448,2]
[418936755,1774595440023,-500.0,0.0001448,2]
[418936756,1774595440032,-500.0,0.0001448,2]
[418936757,1774595440041,-162.91192783,0.0001448,2]
[418936758,1774595440050,-500.0,0.0001448,2]
[418936759,1774595440059,-271.24188485,0.0001448,2]
[418936760,1774595440068,-500.0,0.0001448,2]
[418936761,1774595440078,-500.0,0.0001448,2]
[418936762,1774595440087,-500.0,0.0001448,2]
[418936763,1774595440096,-500.0,0.0001448,2]
[418936764,1774595440105,-26605.65472707,0.00014481,2]
[418936765,1774595440221,-450946.6801726,0.00014481,2]
[418936766,1774595440646,-1741.12838713,0.00014481,2]
[418936767,1774595442431,-524.0,0.00014481,2]
[418936768,1774595442607,-1459.7697373,0.00014481,2]
[418936771,1774595442726,-273.53283106,0.00014481,2]
[418936774,1774595442911,-3302.55053612,0.00014481,2]
[418936776,1774595442923,-3607.0,0.00014481,2]
[418936779,1774595442976,-672.29065134,0.00014481,2]
[418936789,1774595445932,-13591.78275738,0.00014481,2]
[418936790,1774595445941,-151.0,0.00014548,2]
[418936791,1774595445950,-308.8695174,0.0001458,2]
[418936792,1774595445960,-32212.19055462,0.00014581,2]
[418936799,1774596412389,851.65,8.486e-05,2]
[418936800,1774596437771,2200.0,0.000139,5]
[418936801,1774596548851,522.79321945,0.0001422,5]
[418936802,1774596631755,-177.53,0.00012999,2]
[418936803,1774596631764,-1483.73178959,0.00013,2]
[418936804,1774596631830,-2127.65073362,0.00013,2]
[418936805,1774596631842,-1432.77587492,0.00013,2]
[418936806,1774596631853,-250.0,0.00013,2]
[418936807,1774596631863,-508.0,0.00013111,2]
[418936808,1774596631872,-1200.0,0.0001314,2]
[418936809,1774596631882,-2000.0,0.00013141,2]
[418936810,1774596631891,-300.0,0.00013249,2]
[418936811,1774596631901,-300.0,0.00013249,2]
[418936812,1774596631910,-500.0,0.0001325,2]
[418936813,1774596631920,-500.0,0.0001325,2]
[418936814,1774596631929,-500.0,0.0001325,2]
[418936815,1774596631939,-500.0,0.0001325,2]
[418936816,1774596631948,-500.0,0.0001325,2]
[418936817,1774596631957,-166.66,0.00013251,2]
[418936818,1774596631967,-151.0,0.0001331,2]
[418936819,1774596631977,-151.0,0.00013321,2]
[418936820,1774596631986,-200.0,0.00013416,2]
[418936821,1774596631996,-150.0,0.00013512,2]
[418936822,1774596632006,-166.66,0.00013688,2]
[418936823,1774596632015,-1025.0,0.00013743,2]
[418936824,1774596632024,-1000.0,0.00013798,2]
[418936825,1774596632036,-1000.0,0.00013798,2]
[418936826,1774596632045,-1000.0,0.00013798,2]
[418936827,1774596632056,-1000.0,0.00013798,2]
[418936828,1774596632066,-1000.0,0.00013798,2]
[418936829,1774596632075,-150.0,0.00013805,2]
[418936830,1774596632086,-469.95660215,0.00013806,2]
[418936831,1774596632109,-151.18,0.00013301,2]
[418936832,1774596632119,-3180.37408255,0.00013806,2]
[418936833,1774596632134,-1715.35927846,0.00013806,2]
[418936834,1774596637733,-500.90820357,0.00013806,2]
[418936836,1774596637750,-314.00043338,0.00013806,2]
[418936837,1774596637853,-539.93551002,0.00013806,2]
[418936838,1774596637865,-605.91046908,0.00013806,2]
[418936841,1774596640118,-1117.99168444,0.00013806,2]
[418936842,1774596640130,-4926.23470969,0.00013806,2]
[418936843,1774596640141,-4038.17053733,0.00013806,2]
[418936844,1774596640804,-3983.4941997,0.00013806,2]
[418936854,1774596642869,-7906.75379404,0.00013806,2]
[418936855,1774596642880,-993.34152341,0.00013806,2]
[418936856,1774596642999,-162765.57597218,0.00013806,2]
[418936857,1774596643008,-180.0,0.00013857,2]
[418936858,1774596643018,-591.77442886,0.00013873,2]
[418936859,1774596643028,-500.0,0.00013873,2]
[418936860,1774596643037,-500.0,0.00013873,2]
[418936862,1774596643047,-347.48373868,0.00013873,2]
[418936864,1774596643057,-500.0,0.00013873,2]
[418936866,1774596643067,-500.0,0.00013873,2]
[418936868,1774596643077,-500.0,0.00013873,2]
[418936870,1774596643087,-20928.36731268,0.00013873,2]
[418936872,1774596643097,-67389.12935201,0.00013896,2]
[418936874,1774596643107,-307.91576498,0.00013905,2]
[418936876,1774596643117,-500.0,0.00013973,2]
[418936877,1774596643126,-500.0,0.00013973,2]
[418936879,1774596643136,-153.27466148,0.00013973,2]
[418936880,1774596643147,-151.0,0.00013988,2]
[418936881,1774596643156,-197.79122094,0.00013988,2]
[418936882,1774596643166,-243.733,0.00013995,2]
[418936883,1774596643176,-2215.546,0.00013995,2]
[418936884,1774596643186,-225.21,0.00014,2]
[418936885,1774596643196,-500.0,0.00014005,2]
[418936886,1774596643205,-500.0,0.00014005,2]
[418936887,1774596643215,-500.0,0.00014005,2]
[418936888,1774596643224,-60000.0,0.00014006,2]
[418936889,1774596643234,-1029.0,0.00014028,2]
[418936890,1774596643243,-412.0,0.00014028,2]
[418936892,1774596643253,-500.0,0.00014073,2]
[418936893,1774596643263,-209.71,0.00014073,2]
[418936895,1774596643272,-166.66,0.00014125,2]
[418936896,1774596643282,-500.0,0.00014125,2]
[418936897,1774596643291,-5000.0,0.00014299,2]
[418936898,1774596643301,-1978.41058666,0.000143,2]
[418936899,1774596643311,-431.15141547,0.00014346,2]
[418936900,1774596643320,-1500.0,0.00014346,2]
[418936901,1774596643330,-1500.0,0.00014346,2]
[418936902,1774596643339,-1500.0,0.00014346,2]
[418936903,1774596643349,-1000.0,0.00014346,2]
[418936904,1774596643358,-209.71,0.00014347,2]
[418936905,1774596643368,-151.0,0.00014381,2]
[418936906,1774596643377,-151.0,0.00014381,2]
[418936907,1774596643387,-151.0,0.00014381,2]
[418936908,1774596643396,-260.218818,0.00014381,2]
[418936909,1774596643406,-500.0,0.00014399,2]
[418936910,1774596643415,-150.0,0.000144,2]
[418936911,1774596643424,-155.77,0.000144,2]
[418936912,1774596643434,-1000.0,0.00014421,2]
[418936913,1774596643443,-1000.0,0.00014421,2]
[418936914,1774596643454,-1000.0,0.00014421,2]
[418936915,1774596643464,-503.0948792,0.00014421,2]
[418936916,1774596643473,-698.39780813,0.00014421,2]
[418936917,1774596643484,-197.46224712,0.00014421,2]
[418936918,1774596643494,-48202.84326448,0.0001444,2]
[418936919,1774596643504,-1680.0,0.00014454,2]
[418936920,1774596643513,-384.45811669,0.00014473,2]
[418936921,1774596643523,-160.26887516,0.00014473,2]
[418936922,1774596643532,-500.0,0.00014473,2]
[418936923,1774596643542,-500.0,0.00014473,2]
[418936924,1774596643551,-559.65581589,0.00014473,2]
[418936925,1774596643561,-192.11593096,0.00014473,2]
[418936926,1774596643570,-501.06667076,0.00014473,2]
[418936927,1774596643579,-500.25552119,0.00014473,2]
[418936928,1774596643589,-500.0,0.00014473,2]
[418936929,1774596643600,-1211.51069921,0.0001448,2]
[418936930,1774596643609,-500.0,0.0001448,2]
[418936933,1774596643787,-500.0,0.0001448,2]
[418936934,1774596643797,-500.0,0.0001448,2]
[418936935,1774596643806,-553.10600438,0.0001448,2]
[418936936,1774596643816,-535.62610565,0.0001448,2]
[418936937,1774596643825,-500.0,0.0001448,2]
[418936938,1774596643835,-500.0,0.0001448,2]
[418936939,1774596643844,-388.99217538,0.0001448,2]
[418936940,1774596643854,-500.0,0.0001448,2]
[418936941,1774596643864,-459.22750557,0.0001448,2]
[418936942,1774596643873,-151.0,0.00014481,2]
[418936943,1774596643883,-151.0,0.00014481,2]
[418936944,1774596643893,-151.0,0.00014481,2]
[418936945,1774596643902,-151.0,0.00014481,2]
[418936946,1774596643912,-151.0,0.00014481,2]
[418936947,1774596643922,-151.0,0.00014481,2]
[418936948,1774596643932,-193.853124,0.00014481,2]
[418936949,1774596643941,-218.648615,0.00014481,2]
[418936950,1774596643951,-218.648615,0.00014481,2]
[418936951,1774596643961,-218.648615,0.00014481,2]
[418936952,1774596643970,-218.648615,0.00014481,2]
[418936953,1774596643980,-151.0,0.00014481,2]
[418936954,1774596643989,-151.0,0.00014481,2]
[418936955,1774596643999,-151.0,0.00014481,2]
[418936956,1774596644008,-275.555716,0.00014481,2]
[418936957,1774596644017,-151.0,0.00014481,2]
[418936958,1774596644027,-151.0,0.00014481,2]
[418936959,1774596644036,-151.0,0.00014481,2]
[418936960,1774596644046,-151.0,0.00014481,2]
[418936961,1774596644056,-151.0,0.00014481,2]
[418936962,1774596644065,-151.0,0.00014481,2]
[418936963,1774596644076,-194845.8235966,0.00014481,2]
[418936964,1774596644091,-1377.65099164,0.00014481,2]
[418936965,1774596644117,-1854.69999999,0.00014481,2]
[418936983,1774596645805,-1020.88188633,0.00014481,2]
[418936984,1774596646392,-500.0,0.00014481,2]
[418936999,1774596663941,-500.0,0.00013873,2]
[418937000,1774596663964,-151.0,0.00014275,2]
[418937001,1774596663988,-600.0,0.00014378,2]
[418937002,1774596664012,-504.59632495,0.00014421,2]
[418937003,1774596664036,-300.0,0.0001448,2]
[418937004,1774596664064,-8261.40367505,0.00014481,2]
[418937005,1774597401836,5533.0,0.000142,5]
[418937006,1774597641795,2100.0,0.000138,5]
[418937007,1774597643924,2764.70014049,0.000139,5]
[418937046,1774597832402,-167.77,0.00011305,2]
[418937048,1774597832412,-281.0,0.00011305,2]
[418937050,1774597832422,-475.88,0.00011507,2]
[418937052,1774597832431,-300.0,0.00012434,2]
[418937053,1774597832441,-300.0,0.00012434,2]
[418937056,1774597832451,-64.39103324,0.00012434,2]
[418937057,1774597832462,-250.7070206,0.00012434,2]
[418937058,1774597832476,-884.90194616,0.00012434,2]
[418937060,1774597832485,-127.54805384,0.00012435,2]
[418937061,1774597832497,-209.33575571,0.00012435,2]
[418937063,1774597832506,-1500.0,0.0001271,2]
[418937065,1774597832516,-5301.82378933,0.00012793,2]
[418937079,1774597838068,-628.61621067,0.00012793,2]
[418937080,1774597838078,-328.7195,0.00012899,2]
[418937081,1774597838087,-509.0,0.00013111,2]
[418937082,1774597838097,-216.0,0.00013297,2]
[418937083,1774597838106,-242.0,0.00013297,2]
[418937084,1774597838115,-292.64,0.00013307,2]
[418937085,1774597838124,-993.0,0.00013437,2]
[418937086,1774597838133,-170.0,0.00013437,2]
[418937087,1774597838142,-500.0,0.00013573,2]
[418937088,1774597838151,-500.0,0.00013573,2]
[418937089,1774597838160,-500.0,0.00013573,2]
[418937090,1774597838170,-500.0,0.00013573,2]
[418937091,1774597838179,-347.48373868,0.00013573,2]
[418937092,1774597838188,-500.0,0.00013573,2]
[418937093,1774597838198,-500.0,0.00013573,2]
[418937094,1774597838208,-380.90854475,0.00013584,2]
[418937095,1774597838217,-500.0,0.00013584,2]
[418937096,1774597838226,-312.03849566,0.00013584,2]
[418937097,1774597838235,-500.0,0.00013584,2]
[418937098,1774597838245,-500.0,0.00013584,2]
[418937099,1774597838254,-500.0,0.00013584,2]
[418937100,1774597838263,-407.23503425,0.00013584,2]
[418937101,1774597838272,-500.0,0.00013584,2]
[418937102,1774597838281,-500.0,0.00013584,2]
[418937103,1774597838290,-500.0,0.00013584,2]
[418937104,1774597838299,-500.0,0.00013584,2]
[418937105,1774597838309,-500.0,0.00013584,2]
[418937106,1774597838319,-500.0,0.00013584,2]
[418937107,1774597838328,-500.0,0.00013584,2]
[418937108,1774597838337,-500.0,0.00013584,2]
[418937109,1774597838346,-500.0,0.00013584,2]
[418937110,1774597838355,-500.0,0.00013584,2]
[418937111,1774597838365,-500.0,0.00013584,2]
[418937112,1774597838374,-500.0,0.00013584,2]
[418937113,1774597838383,-500.0,0.00013584,2]
[418937114,1774597838392,-500.0,0.00013584,2]
[418937115,1774597838402,-500.0,0.00013584,2]
[418937116,1774597838411,-500.0,0.00013584,2]
[418937117,1774597838420,-500.0,0.00013584,2]
[418937118,1774597838429,-500.0,0.00013584,2]
[418937119,1774597838439,-500.0,0.00013584,2]
[418937120,1774597838448,-500.0,0.00013584,2]
[418937121,1774597838458,-500.0,0.00013584,2]
[418937122,1774597838468,-500.0,0.00013584,2]
[418937123,1774597838477,-500.0,0.00013584,2]
[418937124,1774597838486,-500.0,0.00013584,2]
[418937125,1774597838495,-500.0,0.00013584,2]
[418937126,1774597838504,-500.0,0.00013584,2]
[418937127,1774597838514,-500.0,0.00013584,2]
[418937128,1774597838523,-500.0,0.00013584,2]
[418937130,1774597838532,-500.0,0.00013584,2]
[418937132,1774597838542,-500.0,0.00013584,2]
[418937133,1774597838550,-500.0,0.00013584,2]
[418937134,1774597838560,-500.0,0.00013584,2]
[418937135,1774597838569,-176.1361547,0.00013584,2]
[418937136,1774597838578,-500.0,0.00013584,2]
[418937137,1774597838587,-500.0,0.00013584,2]
[418937138,1774597838596,-500.0,0.00013584,2]
[418937139,1774597838606,-500.0,0.00013584,2]
[418937140,1774597838615,-500.0,0.00013584,2]
[418937141,1774597838625,-500.0,0.00013584,2]
[418937142,1774597838634,-500.0,0.00013584,2]
[418937143,1774597838644,-500.0,0.00013584,2]
[418937144,1774597838653,-500.0,0.00013584,2]
[418937145,1774597838662,-500.0,0.00013584,2]
[418937146,1774597838672,-500.0,0.00013584,2]
[418937147,1774597838681,-500.0,0.00013584,2]
[418937148,1774597838690,-60775.26684291,0.00013585,2]
[418937149,1774597838735,-48612.87884322,0.00013585,2]
[418937150,1774597838747,-1883.0179822,0.00013585,2]
[418937151,1774597838762,-406450.35243167,0.00013585,2]
[418937152,1774597838771,-153.27466148,0.00013585,2]
[418937153,1774597838781,-5110.7848,0.00013595,2]
[418937154,1774597838790,-302.0,0.00013644,2]
[418937155,1774597838800,-300.0,0.00013644,2]
[418937156,1774597838809,-150.0,0.00013672,2]
[418937157,1774597838819,-384.45811669,0.00013673,2]
[418937158,1774597838828,-500.0,0.00013673,2]
[418937159,1774597838837,-431.15141547,0.00013673,2]
[418937160,1774597838846,-500.0,0.00013673,2]
[418937161,1774597838856,-67389.12935201,0.00013675,2]
[418937162,1774597838865,-1680.0,0.00013678,2]
[418937163,1774597838875,-20928.36731268,0.00013684,2]
[418937164,1774597838884,-3371.2349,0.00013685,2]
[418937165,1774597838893,-92936.4417,0.00013685,2]
[418937166,1774597838902,-248.14609831,0.00013692,2]
[418937167,1774597838914,-355.710055,0.00013692,2]
[418937168,1774597838925,-861.7731772,0.00013692,2]
[418937169,1774597838962,200.0,0.000161,120]
[418937172,1774597840303,-401.17646949,0.00013692,2]
[418937174,1774597840312,-500.0,0.00013695,2]
[418937175,1774597840322,-1698.43741703,0.00013696,2]
[418937176,1774597840333,-509.65562623,0.00013696,2]
[418937177,1774597840409,-331.79488458,0.00013696,2]
[418937178,1774597840420,-2364.17345918,0.00013696,2]
[418937179,1774597840430,-200.0,0.00013699,2]
[418937180,1774597840439,-194.30677307,0.00013699,2]
[418937181,1774597840448,-1487.54,0.000137,2]
[418937182,1774597840458,-1487.54,0.000137,2]
[418937183,1774597840467,-1487.54,0.000137,2]
[418937184,1774597840477,-1487.54,0.000137,2]
[418937185,1774597840486,-1487.54,0.000137,2]
[418937186,1774597840495,-591.77442886,0.00013773,2]
[418937187,1774597840504,-160.26887516,0.00013773,2]
[418937188,1774597840514,-500.0,0.00013773,2]
[418937189,1774597840523,-500.0,0.00013773,2]
[418937190,1774597840532,-500.0,0.00013773,2]
[418937191,1774597840542,-500.0,0.00013773,2]
[418937192,1774597840551,-500.0,0.00013773,2]
[418937193,1774597840560,-500.0,0.00013773,2]
[418937194,1774597840570,-500.0,0.00013773,2]
[418937195,1774597840579,-500.0,0.00013773,2]
[418937196,1774597840588,-500.0,0.00013773,2]
[418937197,1774597840597,-500.0,0.00013773,2]
[418937198,1774597840606,-500.0,0.00013773,2]
[418937199,1774597840615,-500.0,0.00013773,2]
[418937200,1774597840624,-500.0,0.00013773,2]
[418937201,1774597840633,-500.0,0.00013773,2]
[418937202,1774597840643,-501.06667076,0.00013773,2]
[418937203,1774597840652,-500.0,0.00013773,2]
[418937204,1774597840661,-500.6669805,0.00013773,2]
[418937205,1774597840672,-500.0,0.00013773,2]
[418937206,1774597840681,-500.0,0.00013773,2]
[418937207,1774597840690,-500.0,0.00013773,2]
[418937208,1774597840699,-559.65581589,0.00013773,2]
[418937209,1774597840708,-192.11593096,0.00013773,2]
[418937210,1774597840718,-500.25552119,0.00013773,2]
[418937211,1774597840727,-500.0,0.00013777,2]
[418937212,1774597840736,-200.0,0.00013777,2]
[418937213,1774597840746,-151.0,0.00013777,2]
[418937214,1774597840755,-197.79122094,0.00013777,2]
[418937215,1774597840764,-151.0,0.00013777,2]
[418937216,1774597840773,-151.0,0.00013777,2]
[418937217,1774597840782,-294.6689732,0.00013777,2]
[418937218,1774597840791,-500.0,0.00013777,2]
[418937219,1774597840800,-500.0,0.00013777,2]
[418937220,1774597840809,-500.0,0.00013777,2]
[418937221,1774597840819,-500.0,0.00013777,2]
[418937222,1774597840828,-500.0,0.00013777,2]
[418937223,1774597840837,-643.86066983,0.00013777,2]
[418937224,1774597840845,-151.0,0.00013782,2]
[418937225,1774597840855,-500.0,0.00013784,2]
[418937226,1774597840864,-500.0,0.00013784,2]
[418937227,1774597840873,-500.0,0.00013784,2]
[418937228,1774597840882,-380.99,0.00013793,2]
[418937229,1774597840892,-151.0,0.00013793,2]
[418937230,1774597840901,-151.0,0.00013793,2]
[418937231,1774597840910,-500.0,0.00013794,2]
[418937232,1774597840919,-500.0,0.00013794,2]
[418937233,1774597840928,-500.0,0.00013794,2]
[418937234,1774597840937,-500.0,0.00013794,2]
[418937235,1774597840946,-500.0,0.00013794,2]
[418937236,1774597840955,-500.0,0.00013794,2]
[418937237,1774597840964,-510.41211883,0.00013794,2]
[418937238,1774597840973,-500.0,0.00013795,2]
[418937239,1774597840983,-500.0,0.00013795,2]
[418937240,1774597840992,-500.0,0.00013795,2]
[418937241,1774597841001,-500.0,0.00013795,2]
[418937242,1774597841009,-500.0,0.00013795,2]
[418937243,1774597841018,-500.0,0.00013795,2]
[418937244,1774597841027,-500.0,0.00013795,2]
[418937245,1774597841036,-500.0,0.00013795,2]
[418937246,1774597841044,-470.0,0.00013795,2]
[418937247,1774597841053,-535.62610565,0.00013795,2]
[418937248,1774597841062,-500.0,0.00013795,2]
[418937249,1774597841071,-500.0,0.00013795,2]
[418937250,1774597841080,-500.0,0.00013795,2]
[418937251,1774597841090,-500.0,0.00013795,2]
[418937252,1774597841099,-500.0,0.00013795,2]
[418937253,1774597841108,-500.0,0.00013795,2]
[418937254,1774597841117,-165.531312,0.00013795,2]
[418937255,1774597841126,-500.0,0.00013795,2]
[418937256,1774597841135,-500.0,0.00013795,2]
[418937257,1774597841144,-165.531312,0.00013795,2]
[418937258,1774597841154,-165.531312,0.00013795,2]
[418937259,1774597841163,-165.531312,0.00013795,2]
[418937260,1774597841172,-581.25413658,0.00013795,2]
[418937261,1774597841182,-500.0,0.00013795,2]
[418937262,1774597841191,-500.0,0.00013795,2]
[418937263,1774597841200,-500.0,0.00013795,2]
[418937264,1774597841209,-553.10600438,0.00013795,2]
[418937265,1774597841218,-666.0,0.00013795,2]
[418937266,1774597841227,-666.0,0.00013795,2]
[418937267,1774597841236,-151.0,0.00013796,2]
[418937268,1774597841246,-151.0,0.00013796,2]
[418937269,1774597841255,-151.0,0.00013796,2]
[418937271,1774597841264,-190.536125,0.00013796,2]
[418937272,1774597841273,-190.536125,0.00013796,2]
[418937273,1774597841282,-190.536125,0.00013796,2]
[418937274,1774597841291,-190.536125,0.00013796,2]
[418937275,1774597841300,-151.0,0.00013796,2]
[418937276,1774597841309,-151.0,0.00013796,2]
[418937277,1774597841318,-151.0,0.00013796,2]
[418937278,1774597841327,-151.0,0.00013796,2]
[418937279,1774597841336,-151.0,0.00013796,2]
[418937280,1774597841345,-260.218818,0.00013796,2]
[418937281,1774597841354,-515.991747,0.00013796,2]
[418937282,1774597841363,-515.991747,0.00013796,2]
[418937283,1774597841373,-515.991747,0.00013796,2]
[418937284,1774597841381,-515.991747,0.00013796,2]
[418937285,1774597841390,-515.991747,0.00013796,2]
[418937286,1774597841399,-515.991747,0.00013796,2]
[418937287,1774597841408,-515.991747,0.00013796,2]
[418937288,1774597841417,-515.991747,0.00013796,2]
[418937289,1774597841426,-482.683159,0.00013796,2]
[418937290,1774597841435,-482.683159,0.00013796,2]
[418937291,1774597841444,-482.683159,0.00013796,2]
[418937292,1774597841453,-482.683159,0.00013796,2]
[418937293,1774597841462,-482.683159,0.00013796,2]
[418937294,1774597841472,-482.683159,0.00013796,2]
[418937295,1774597841481,-482.683159,0.00013796,2]
[418937296,1774597841490,-482.683159,0.00013796,2]
[418937297,1774597841499,-151.0,0.00013796,2]
[418937299,1774597841508,-151.0,0.00013796,2]
[418937300,1774597841517,-165.531312,0.00013796,2]
[418937301,1774597841526,-165.531312,0.00013796,2]
[418937302,1774597841536,-165.531312,0.00013796,2]
[418937303,1774597841545,-165.531312,0.00013796,2]
[418937304,1774597841554,-165.531312,0.00013796,2]
[418937305,1774597841564,-165.531312,0.00013796,2]
[418937306,1774597841574,-165.531312,0.00013796,2]
[418937307,1774597841583,-165.531312,0.00013796,2]
[418937308,1774597841592,-151.0,0.00013796,2]
[418937309,1774597841602,-151.0,0.00013796,2]
[418937310,1774597841611,-173.415438,0.00013796,2]
[418937311,1774597841621,-164.746581,0.00013796,2]
[418937312,1774597841630,-164.746581,0.00013796,2]
[418937313,1774597841640,-164.746581,0.00013796,2]
[418937314,1774597841649,-164.746581,0.00013796,2]
[418937315,1774597841658,-164.746581,0.00013796,2]
[418937316,1774597841668,-164.746581,0.00013796,2]
[418937317,1774597841678,-164.746581,0.00013796,2]
[418937318,1774597841687,-164.746581,0.00013796,2]
[418937319,1774597841696,-181730.45518613,0.00013796,2]
[418937320,1774597841734,-301.92197159,0.00013796,2]